Cogmind - Beta 15 @@@ ROGUE MODE // 2025.10.07 @ 05:03:25 Player: shapeshifter Result: Self-destructed Performance ------------- Evolutions (1) 500 Regions Visited (6) 1200 Robots Destroyed (50) 250 Value Destroyed (1263) 1263 Prototype IDs (23) 460 Alien Tech Used (0) 0 Bonus (335) 335 TOTAL SCORE: 4008 Bonus ------- Follower Combat Kills 35 Aligned with FarCom 300 Cogmind --------- Core Integrity 244/400 Matter 100/300 Energy 275/275 System Corruption 0% Temperature Warning (307) Movement Core (3700) Ox73 Location -8/Mines Parts ------- > --- POWER (1) -------- Deuterium Engine > --- PROPULSION (3) --- Advanced Treads > --- UTILITY (3) ------ Humpback Hardened Medium Armor Plating > --- WEAPON (2) ------- Autogun > --- INVENTORY (35) --- Deuterium Engine Deuterium Engine Nuclear Core Reinforced Deuterium Engine Fission Core Improved Heat Sink Large Storage Unit High-capacity Storage Unit Light Humpback Light Humpback Light Humpback Humpback Humpback Humpback Weight Redist. System Visual Processing Unit Modified TNC Utility Shielding Hardened Medium Armor Plating Hardened Medium Armor Plating Hardened Medium Armor Plating Hacking Suite Hacking Suite Hacking Suite Hacking Suite Supersonic Drone Bay (1/1) Rocket Launcher Field Lobotomy Kit (5) Peak State ------------ > --- POWER ------------ Deuterium Engine > --- PROPULSION ------- Advanced Treads Compact Wheel Compact Wheel > --- UTILITY ---------- Humpback Hardened Medium Armor Plating > --- WEAPON ----------- Autogun Minigun > --- INVENTORY -------- Deuterium Engine Deuterium Engine Nuclear Core Reinforced Deuterium Engine Fission Core Improved Heat Sink Large Storage Unit High-capacity Storage Unit Light Humpback Light Humpback Light Humpback Humpback Humpback Humpback Weight Redist. System Visual Processing Unit Modified TNC Utility Shielding Hardened Medium Armor Plating Hardened Medium Armor Plating Hardened Medium Armor Plating Hacking Suite Hacking Suite Hacking Suite Hacking Suite Supersonic Drone Bay Rocket Launcher Field Lobotomy Kit [Rating: 26] Favorites ----------- Power Deuterium Engine Engine Deuterium Engine Propulsion Light Treads Treads Light Treads Wheel Compact Wheel Flight Unit VTOL Module Utility Large Storage Unit Device Improved Heat Sink Storage Large Storage Unit Protection Hardened Medium Armor Plating Weapon Medium Laser Energy Gun Medium Laser Energy Cannon Beam Cannon Ballistic Gun Autogun Launcher Rocket Launcher Build | -11 -10 -10 -9 -9 -9 -8 ------- Run | Yrd Mat Min Mat Min Exi Min Slots Evolved 2 | . . . 2 . . . Power . | . . . . . . . Propulsion 1 | . . . 1 . . . Utility 1 | . . . 1 . . . Weapon . | . . . . . . . Parts Attached 38 | 8 8 1 14 2 2 3 Power 5 | 1 1 . 2 1 . . Engine 5 | 1 1 . 2 1 . . Core . | . . . . . . . Reactor . | . . . . . . . Propulsion 11 | 3 1 . 6 . . 1 Treads 5 | 2 1 . 1 . . 1 Leg . | . . . . . . . Wheel 5 | 1 . . 4 . . . Hover . | . . . . . . . Flight 1 | . . . 1 . . . Utility 11 | 2 3 . 4 . 2 . Device 2 | 1 . . 1 . . . Storage 4 | 1 2 . . . 1 . Processor . | . . . . . . . Hackware . | . . . . . . . Protection 5 | . 1 . 3 . 1 . Artifact . | . . . . . . . Weapon 11 | 2 3 1 2 1 . 2 Energy Gun 4 | . 2 1 1 . . . Energy Cannon 1 | . 1 . . . . . Ballistic Gun 4 | 2 . . 1 . . 1 Ballistic Cannon . | . . . . . . . Launcher 2 | . . . . 1 . 1 Special Weapon . | . . . . . . . Impact Weapon . | . . . . . . . Slashing Weapon . | . . . . . . . Piercing Weapon . | . . . . . . . Special Melee Weapon . | . . . . . . . Unidentified Prototypes . | . . . . . . . Parts Lost 13 | . 3 1 5 1 . 3 Power 3 | . 1 1 1 . . . Propulsion 5 | . . . 2 1 . 2 Utility 2 | . 1 . 1 . . . Weapon 3 | . 1 . 1 . . 1 Highest Loss Streak 3 | . 2 1 3 1 . 3 To Critical Strikes . | . . . . . . . Average Backups 17 | 3 12 15 14 17 21 28 Power 1 | . . . . 3 4 5 Propulsion 2 | 1 4 4 3 . . . Utility 11 | . 6 8 8 13 14 21 Weapon 1 | . 1 2 1 1 1 1 Tool/Special . | . . . . . . . Unused Backups 35 | . 3 . 6 . 4 22 Power 7 | . 1 . . . 1 5 Propulsion 4 | . 1 . 3 . . . Utility 21 | . 1 . 2 . 2 16 Weapon 2 | . . . 1 . 1 . Tool/Special 1 | . . . . . . 1 Average Slot Usage (%) 88 | . 97 92 84 91 83 77 Engine 10 | . 13 6 5 11 11 11 Treads 13 | . 28 28 10 . . 1 Wheel 12 | . . . 14 25 22 20 Device 5 | . 3 . 10 11 6 . Storage 12 | . 14 14 11 11 11 11 Protection 10 | . 9 14 11 11 10 11 Energy Gun 13 | . 12 26 19 10 11 9 Energy Cannon 2 | . 6 1 . . . . Ballistic Gun 7 | . 7 . 1 11 11 12 Peak Build Rating 26 | 7 10 10 18 19 22 26 Average Rating 14 | 4 9 9 12 18 20 21 On Entrance 12 | . 7 10 9 18 19 21 Naked Turns . | . . . . . . . Heaviest Build 223 | 12 55 35 57 63 222 223 Greatest Support 42 | 40 40 40 42 42 32 32 Greatest Overweight (x) 6 | . 1 . 3 1 6 6 Average Overweight (x) 1 | . . . . 1 2 6 Largest Inventory Capacity 35 | 8 20 15 20 20 35 35 Average Capacity 19 | 7 13 15 15 20 26 35 Most Carried 35 | 6 16 15 20 19 34 35 Average Carried 18 | 3 12 14 14 17 22 34 Final Capacity 35 | 8 15 15 20 20 35 35 Final Carried 34 | 5 15 15 18 18 34 34 Class Distribution -------------------- 63% | Mutant 21% | Hauler-Mutant 14% | Scavenger-Mutant Dominant Class ---------------- Mutant | -10/Materials Mutant | -10/Mines Scavenger-Mutant | -9/Materials Mutant | -9/Mines Mutant | -9/Exiles Hauler-Mutant | -8/Mines Resources | -11 -10 -10 -9 -9 -9 -8 ----------- Run | Yrd Mat Min Mat Min Exi Min Matter Collected 844 | 286 250 10 175 37 . 86 Remotely . | . . . . . . . Salvage Created 1781 | 60 638 105 671 66 . 241 Parts 88 | 5 36 2 29 6 . 10 Haulers Intercepted 1 | . 1 . . . . . Recyclers Shooed 4 | . . . 4 . . . Parts Field Recycled . | . . . . . . . Retrieved Matter . | . . . . . . . Parts Self-Destructed . | . . . . . . . Prevented . | . . . . . . . Kills | -11 -10 -10 -9 -9 -9 -8 ------- Run | Yrd Mat Min Mat Min Exi Min Combat Hostiles Destroyed 37 | . 15 2 10 4 . 6 Guns 29 | . 11 2 10 1 . 5 Cannons 4 | . 4 . . . . . AOE 4 | . . . . 3 . 1 Classes Destroyed 9 | 2 4 . 2 . . 1 Builder 1 | . . . 1 . . . Tunneler 1 | 1 . . . . . . Hauler 1 | . 1 . . . . . Recycler 4 | 1 . . 3 . . . Watcher 5 | . 3 . 2 . . . Swarmer 11 | . 3 . 3 4 . 1 Grunt 21 | . 12 2 2 1 . 4 Brawler 1 | . . . . . . 1 Sentry 5 | . . . 5 . . . Best Kill Streak 3 | 2 3 1 3 3 . 3 Combat Bots Only 3 | . 3 1 3 3 . 3 Max Kills in Single Turn 3 | 1 2 1 1 3 . 1 Gunslinging 1 | . 1 . . . . . Exploded 3 | . . . . 3 . 1 Melee . | . . . . . . . Uniques/NPCs Destroyed . | . . . . . . . Combat | -11 -10 -10 -9 -9 -9 -8 -------- Run | Yrd Mat Min Mat Min Exi Min Hostile Shots Fired 239 | . 80 23 79 9 . 48 Missed 66 | . 22 6 26 2 . 10 Hits 173 | . 58 17 53 7 . 38 Melee 1 | . . . . . . 1 Projectile 172 | . 58 17 53 7 . 37 Critical Strikes 3 | . 1 . . . . 2 Damage Taken 2188 | . 665 202 619 91 . 611 Core 284 | . 105 23 86 27 . 43 Absorbed by Shields . | . . . . . . . Core Remaining (%) 74 | 100 . 48 . . . . Volleys Fired 194 | 4 84 11 62 5 . 28 Largest 2 | 2 2 2 2 2 . 2 Hottest 110 | 40 110 100 100 73 . 73 Shots Fired 350 | 8 152 22 117 9 . 42 Gun 316 | 8 124 22 117 8 . 37 Cannon 28 | . 28 . . . . . Launcher 6 | . . . . 1 . 5 Special . | . . . . . . . Kinetic 101 | 8 41 . 12 4 . 36 Thermal 243 | . 111 22 105 4 . 1 Explosive 6 | . . . . 1 . 5 Electromagnetic . | . . . . . . . Robot Hit Streak 15 | 7 15 6 11 1 . 8 Robot Miss Streak 6 | . 6 3 3 6 . 3 Penetration Max . | . . . . . . . Secondary Targets 4 | . 2 . 1 . . 1 Max Gunslinging Chain 1 | . 1 . 1 . . 1 Shots Hit Robots 217 | 7 89 14 79 2 . 26 Core Hits 95 | 3 35 5 28 7 . 17 Critical Kills . | . . . . . . . Critical Parts Destroyed . | . . . . . . . Critical Strikes 11 | . 3 . 7 . . 1 Burn 11 | . 3 . 7 . . 1 Melee Attacks . | . . . . . . . Impact . | . . . . . . . Slashing . | . . . . . . . Piercing . | . . . . . . . Sneak Attacks . | . . . . . . . Combat Hostiles . | . . . . . . . Follow-up Attacks . | . . . . . . . Damage Inflicted 3581 | 71 1214 184 1037 298 . 777 Guns 2741 | 71 974 184 1037 54 . 421 Cannons 240 | . 240 . . . . . Explosions 600 | . . . . 244 . 356 Melee . | . . . . . . . Ramming . | . . . . . . . Kinetic 925 | 71 316 . 101 29 . 408 Thermal 2056 | . 898 184 936 25 . 13 Explosive 600 | . . . . 244 . 356 Electromagnetic . | . . . . . . . Impact . | . . . . . . . Slashing . | . . . . . . . Piercing . | . . . . . . . Highest Corruption . | . . . . . . . Average Corruption . | . . . . . . . Corruption Purged . | . . . . . . . Corruption Blocked . | . . . . . . . Overload Shots . | . . . . . . . Overflow Damage 7 | . . . . 7 . . Projectiles . | . . . . . . . Explosions 7 | . . . . 7 . . Melee . | . . . . . . . Knockbacks . | . . . . . . . Impact . | . . . . . . . Kinetic . | . . . . . . . Secondary . | . . . . . . . Self-Inflicted Damage 50 | . . . . 24 . 26 Shots 3 | . . . . 1 . 2 Rammed . | . . . . . . . Targets Rammed . | . . . . . . . Kicked . | . . . . . . . Crushed . | . . . . . . . Highest Temperature 477 | . 477 345 25 16 . 315 Average Temperature 123 | . 119 211 9 8 . 158 Received Heat Transfer 996 | . 381 114 132 . . 369 Effects 6 | . 5 . . . . 1 Shutdowns 1 | . 1 . . . . . Energy Bleed 1 | . 1 . . . . . Interference 3 | . 2 . . . . 1 Matter Decay 1 | . 1 . . . . . Siege Activations . | . . . . . . . Martial Activations . | . . . . . . . Shielding Activations . | . . . . . . . Robots Disrupted . | . . . . . . . Combat Hostiles . | . . . . . . . Robots Corrupted . | . . . . . . . Combat Hostiles . | . . . . . . . Parts Fried . | . . . . . . . Impact Corruptions . | . . . . . . . Robots Melted . | . . . . . . . Combat Hostiles . | . . . . . . . Parts Melted 18 | . 5 2 10 . . 1 Heat Transferred 6734 | . 2701 555 3293 74 . 111 Parts Sabotaged . | . . . . . . . Parts Stolen . | . . . . . . . Parts Stripped . | . . . . . . . Power Chain Reactions . | . . . . . . . Alert | -11 -10 -10 -9 -9 -9 -8 ------- Run | Yrd Mat Min Mat Min Exi Min Maximum Alert Level . | . . . . . . . Low Security (%) 100 | 100 100 100 100 100 . 100 Level 1 . | . . . . . . . Level 2 . | . . . . . . . Level 3 . | . . . . . . . Level 4 . | . . . . . . . Level 5 . | . . . . . . . High Security . | . . . . . . . Max Security . | . . . . . . . Peak Influence 150 | 10 104 30 120 150 . 145 Initial 29 | . . 19 . 29 . . Average 42 | 1 42 8 48 95 . 28 Influence Increases 1390 | 10 502 50 368 171 . 289 Destroy 0b10 Robot/C 840 | . 300 40 200 120 . 180 Destroy 0b10 Robot/NC 60 | 10 20 . 30 . . . Destroy Leader 202 | . 68 10 74 20 . 30 Allied During Kill 31 | . . . . 21 . 10 Successful Hack 56 | . 37 . 19 . . . Select Force Hacks 60 | . 30 . 30 . . . Destroy Structure 36 | . 2 . . 10 . 24 Lose Combat Pursuer 105 | . 45 . 15 . . 45 Influence Decreases 1255 | 10 452 100 292 207 40 154 Entered New Map 118 | . . 31 . 47 40 . Time Decay 1002 | 10 422 59 237 150 . 124 Lost Part 130 | . 30 10 50 10 . 30 Lost Ally 5 | . . . 5 . . . Squads Dispatched 7 | . 4 . 3 . . . Investigation 3 | . 2 . 1 . . . Extermination . | . . . . . . . Reinforcement 4 | . 2 . 2 . . . Assault . | . . . . . . . Garrison . | . . . . . . . Intercept . | . . . . . . . Searches Triggered . | . . . . . . . Construction Impeded . | . . . . . . . Haulers Reinforced . | . . . . . . . Active Scanning Responses . | . . . . . . . Cargo Convoy Interrupts . | . . . . . . . Stealth | -11 -10 -10 -9 -9 -9 -8 --------- Run | Yrd Mat Min Mat Min Exi Min Distress Signals 1 | . 1 . . . . . Communications Jammed . | . . . . . . . Distress Signals . | . . . . . . . Times Spotted 66 | . 26 2 23 7 . 8 Peak Tracking Total 6 | . 5 2 4 4 . 6 Tactical Retreats 5 | . 3 . 1 . . 1 Traps | -11 -10 -10 -9 -9 -9 -8 ------- Run | Yrd Mat Min Mat Min Exi Min Traps Triggered 1 | . 1 . . . . . Indirectly . | . . . . . . . Trap Hack Attempts . | . . . . . . . Triggered . | . . . . . . . Disarmed . | . . . . . . . Reprogrammed . | . . . . . . . Reused . | . . . . . . . Traps Extracted . | . . . . . . . Installed . | . . . . . . . Triggered . | . . . . . . . Machines | -11 -10 -10 -9 -9 -9 -8 ---------- Run | Yrd Mat Min Mat Min Exi Min Machines Disabled 1 | . 1 . . . . . Max in Single Turn 1 | . 1 . . . . . Machines Repaired . | . . . . . . . Machines Dismantled . | . . . . . . . Machines Sabotaged . | . . . . . . . Overloaded Fab Kills . | . . . . . . . Hacking | -11 -10 -10 -9 -9 -9 -8 --------- Run | Yrd Mat Min Mat Min Exi Min Machines Accessed 14 | . 7 . 5 . 2 . Terminals 9 | . 6 . 3 . . . Fabricators . | . . . . . . . Repair Stations . | . . . . . . . Recycling Units 2 | . 1 . 1 . . . Scanalyzers 1 | . . . 1 . . . Garrison Access . | . . . . . . . Total Hacks 52 | . 25 . 25 . 2 . Successful 38 | . 14 . 22 . 2 . Failed 14 | . 11 . 3 . . . Catastrophic . | . . . . . . . Database Lockouts . | . . . . . . . Manual 35 | . 23 . 11 . 1 . Terminals 32 | . 22 . 10 . . . Fabricators . | . . . . . . . Repair Stations . | . . . . . . . Recycling Units 5 | . 3 . 2 . . . Scanalyzers 13 | . . . 13 . . . Garrison Access . | . . . . . . . Terminal Hacks 7 | . 3 . 2 . 2 . Record 1 | . . . . . 1 . Branch Access Points 1 | . 1 . . . . . Registered Components 2 | . 1 . 1 . . . Zone Layout 2 | . 1 . 1 . . . Proto ID Catalog 1 | . . . . . 1 . Fabricator Hacks . | . . . . . . . Repair Station Hacks . | . . . . . . . Recycling Unit Hacks 2 | . 1 . 1 . . . Retrieve Components 2 | . 1 . 1 . . . Scanalyzer 13 | . . . 13 . . . Insert Component 6 | . . . 6 . . . Analyze 7 | . . . 7 . . . Garrison Access Hacks . | . . . . . . . Unauthorized Hacks 16 | . 10 . 6 . . . Terminals 13 | . 8 . 5 . . . Botnet 5 | . 3 . 2 . . . Skim 8 | . 5 . 3 . . . Fabricators . | . . . . . . . Repair Stations . | . . . . . . . Recycling Units 3 | . 2 . 1 . . . Mask 1 | . 1 . . . . . Tunnel 2 | . 1 . 1 . . . Scanalyzers . | . . . . . . . Garrison Access . | . . . . . . . Data Cores Recovered . | . . . . . . . Used . | . . . . . . . Hacking Detections 7 | . 4 . 3 . . . Full Trace Events . | . . . . . . . Feedback Events . | . . . . . . . Feedback Blocked . | . . . . . . . Robot Schematics Acquired . | . . . . . . . Robots Built . | . . . . . . . Authchips . | . . . . . . . Time . | . . . . . . . Total Robot Build Rating . | . . . . . . . Part Schematics Acquired 5 | . . . 5 . . . Parts Built . | . . . . . . . Authchips . | . . . . . . . Time . | . . . . . . . Total Part Build Rating . | . . . . . . . Parts Repaired . | . . . . . . . Time . | . . . . . . . Parts Recycled . | . . . . . . . Recycled Matter . | . . . . . . . Retrieved Matter . | . . . . . . . Retrieved Components 11 | . 1 . 10 . . . Parts Scanalyzed 5 | . . . 5 . . . Part Schematics Acquired 5 | . . . 5 . . . Parts Damaged . | . . . . . . . Bothacking | -11 -10 -10 -9 -9 -9 -8 ------------ Run | Yrd Mat Min Mat Min Exi Min Used RIF Installer . | . . . . . . . Robots Hacked . | . . . . . . . Non-combat . | . . . . . . . Combat . | . . . . . . . Robot Hacks Applied . | . . . . . . . Relay Couplers Released . | . . . . . . . Fabnet Peak Effective % . | . . . . . . . Robots Rewired . | . . . . . . . Allies Hacked . | . . . . . . . Hacks Repelled . | . . . . . . . Allies | -11 -10 -10 -9 -9 -9 -8 -------- Run | Yrd Mat Min Mat Min Exi Min Total Allies 5 | . . 2 . 3 . . Largest Group 3 | . . 2 2 3 2 2 Highest-Rated Group 40 | . . 39 39 40 32 32 Highest-Rated Ally 31 | . . 31 31 16 16 16 Total Orders . | . . . . . . . Ally Attacks 25 | . . . 5 8 . 12 Total Damage 221 | . . . 44 57 . 120 Kills 5 | . . . . 2 . 3 Allies Corrupted . | . . . . . . . Allies Melted . | . . . . . . . Intel | -11 -10 -10 -9 -9 -9 -8 ------- Run | Yrd Mat Min Mat Min Exi Min Active Infowar (turns) 295 | 1 294 . . . . . Seismic 295 | 1 294 . . . . . Robot Analysis Total . | . . . . . . . Derelict Logs Recovered 1 | . . . . 1 . . Drone Launches . | . . . . . . . Drone Recoveries . | . . . . . . . Exploration | -11 -10 -10 -9 -9 -9 -8 ------------- Run | Yrd Mat Min Mat Min Exi Min Turns Passed 3610 | 86 1139 218 706 311 557 593 Spaces Moved 1914 | 46 502 109 353 246 392 266 Core 18 | 18 . . . . . . Treads 774 | 28 502 109 135 . . . Legs . | . . . . . . . Wheels 1122 | . . . 218 246 392 266 Hover . | . . . . . . . Flight . | . . . . . . . Fastest Speed 50 | 50 160 160 90 108 115 190 Average Speed 146 | 116 160 160 128 112 136 190 Slowest Speed 240 | 160 240 160 240 115 190 190 Overloaded Moves . | . . . . . . . Propulsion Burnouts . | . . . . . . . Robots Hopped . | . . . . . . . Potential Cave-ins . | . . . . . . . Cave-ins Triggered . | . . . . . . . Exploration Rate (%) 47 | 4 77 27 44 43 69 67 Regions Visited 6 Branch Regions 4 Pre-discovered Areas 4 | . 2 . 1 . 1 . Known Exits Taken 2 | . 1 1 . . . . Unknown Exits Taken 4 | 1 . . 1 1 1 . Scrap Searched 3 | . . 1 . . . 2 Spaces Dug 12 | . . . . . . 12 Terrain Destroyed 44 | . . . . 12 . 32 Melee . | . . . . . . . Projectile . | . . . . . . . AOE 44 | . . . . 12 . 32 Terrain Rammed . | . . . . . . . Walls Destroyed . | . . . . . . . Machines Disabled . | . . . . . . . Actions | -11 -10 -10 -9 -9 -9 -8 --------- Run | Yrd Mat Min Mat Min Exi Min Total 2383 | 70 685 131 491 270 418 318 Wait 141 | 3 65 8 31 13 4 17 Move 1908 | 45 501 108 352 245 391 266 Hop . | . . . . . . . Pick Up 64 | 10 18 1 17 2 14 2 Fast Attach 11 | 2 . 1 7 . 1 . Attach 15 | 5 3 . 4 . 1 2 Detach 1 | . . . . . 1 . Swap 17 | 1 6 . 5 3 . 2 Drop 32 | . 8 2 13 2 6 1 Fire 194 | 4 84 11 62 5 . 28 Melee . | . . . . . . . Ram . | . . . . . . . Kick . | . . . . . . . Crush . | . . . . . . . Escape Stasis . | . . . . . . . Rewire . | . . . . . . . Trap . | . . . . . . . Miscellaneous . | . . . . . . . Route ------- -11/Scrapyard -10/Materials (discovered 6 exits: *Mat x3 / *Min x2 / Sub) -10/Mines (discovered 2 exits: *Mat x2) -9/Materials (discovered 3 exits: *Mat / [*Min] / Sto) -9/Mines (discovered 2 exits: *Mat / *Exi) -9/Exiles -8/Mines History --------- Turn | Location | Event 5 | -11/Scrapyard | Discovered new exit (range 14) 87 | -11/Scrapyard | Entered Materials 165 | -10/Materials | Discovered new exit (range 15) 263 | -10/Materials | Discovered new exit (range 11) 303 | -10/Materials | Build established: Mutant 345 | -10/Materials | Identified exit to Mines 642 | -10/Materials | Discovered new exit (range 16) 917 | -10/Materials | Discovered new exit (range 16) 1071 | -10/Materials | Loaded intel: 10 trap records 1102 | -10/Materials | Identified exit to Subcaves 1125 | -10/Materials | Learned Storage stockpile data 1137 | -10/Materials | Learned Materials stockpile data 1138 | -10/Materials | Learned 2 Mines zone layouts 1139 | -10/Materials | Identified exit to Materials 1139 | -10/Materials | Learned location of 1 exit from Materials 1140 | -10/Materials | Learned Storage trap positions 1152 | -10/Materials | Learned location of 2 exits from Mines 1176 | -10/Materials | Learned location of Recycling (-9) 1226 | -10/Materials | Entered Mines 1334 | -10/Mines | Core integrity fell below 50% 1444 | -10/Mines | Entered Materials 1444 | -9/Materials | Accompanied by 2 allies 1444 | -9/Materials | Evolved 2 slots: Propulsion x1, Utility x1 1445 | -9/Materials | Identified exit to Storage 1446 | -9/Materials | Identified exit to Materials 1449 | -9/Materials | Led the pair of lost Derelicts to an unsafe place 2042 | -9/Materials | Lost 3 parts (1p1u1w) 2066 | -9/Materials | Build established: Scavenger-Mutant 2090 | -9/Materials | Discovered new exit (range 12) 2150 | -9/Materials | Entered Mines 2154 | -9/Mines | Assisted by bots powering up and referring to "LRC-V3" 2213 | -9/Mines | Found a Scrap Suit stashed away for nefarious purposes 2247 | -9/Mines | Received a Rocket Launcher from a helpful Derelict 2266 | -9/Mines | Learned Materials emergency access door positions 2348 | -9/Mines | A weapon hastily lodged in a ceiling crevice suddenly fell to the ground 2373 | -9/Mines | Discovered exit to Materials (range 3) 2388 | -9/Mines | Assembled infested the area 2443 | -9/Mines | Discovered new exit (range 5) 2461 | -9/Mines | Entered Exiles 2461 | -9/Exiles | Accompanied by 2 allies 2496 | -9/Exiles | Met 8R-AWN 2513 | -9/Exiles | Met EX-HEX 2565 | -9/Exiles | Met EX-DEC 2570 | -9/Exiles | Build established: Mutant 2585 | -9/Exiles | Learned location of Zion (-7) 2655 | -9/Exiles | Met EX-BIN 2671 | -9/Exiles | Aligned with FarCom system 2672 | -9/Exiles | Given EX-Vault access code 2698 | -9/Exiles | Opened EX-Vault 2706 | -9/Exiles | Found Field Lobotomy Kit 2710 | -9/Exiles | Found Modified TNC 2716 | -9/Exiles | Found Supersonic Drone Bay 2737 | -9/Exiles | Warned to stay clear of 0b10 Research branches 2997 | -9/Exiles | Discovered new exit (range 11) 3018 | -9/Exiles | Stole three prototypes: Modified TNC, Supersonic Drone Bay, Field Lobotomy Kit 3018 | -9/Exiles | Entered Mines 3018 | -8/Mines | Accompanied by 2 allies 3093 | -8/Mines | Build established: Hauler-Mutant 3611 | -8/Mines | Self-destructed Last Messages --------------- 03504_ Trooper 2b destroyed. 03506_ Acquired Adv. Treads. 03508_ Acquired 10 matter. 03551_ G-47 Trooper destroyed. 03556_ G-50 Soldier destroyed. 03561_ Critical hit (Burn: +37). 03577_ B-36 Bruiser destroyed. 03577_ Switching to secondary target: G-47 Trooper. 03579_ Com. Wheel destroyed. 03585_ G-47 Trooper destroyed. 03592_ Destroyed Lgt. Nuclear Core. 03595_ Overheating: System interference. 03595_ Autogun temporarily disabled. 03598_ Com. Wheel destroyed. 03600_ K-01 Serf collects debris. 03604_ G-47 Trooper destroyed. 03604_ K-01 Serf collects debris. 03606_ Critical hit (Burn: +37). 03608_ K-01 Serf collects debris. 03610_ Minigun destroyed. Map ----- +----------------------------------------------------+ | | | | | | | ?????????????????????????????????????????????????? | | ????????????????????????????????#######??????????? | | ??????????????????????????????## #####??????? | | ??????????######???###????????# ##?????? | | ?????????## #?## #???????# ##????? | | ?????????# ## ??????## #? ##???? | | ????????## ?????## #??# ##??? | | ???????## ####### #### #??? | | ?????? %* ## #??? | | ???????# #???? | | ??????????????### ###### ##????? | | ????????????????## ##? ## ##?????? | | ???????????g?????####[### #??????? | | ????# ######## ## ## ##??????? | | ?? g !% #######???????? | | ?? g ### % ##?????????????? | | ?????# ###??# ####??????????????? | | ?????## ???????# * ##????????????????? | | ??????# ?????????# g* ##???????????????? | | ??????# ???????????## =% #???????????????? | | ???????????????????# k / #???????????????? | | ???????????????????# *% ##???????????????? | | ???????????????????## @ ###????????????????? | | ????????????????????#### ##??????????????????? | | ???????????????????????## ##??????????????????? | | ????????????????????????# ##?????????????????? | | ????????????????######### ##????????????????? | | ?????????????? #???######???????? | | ????????????? k #??## ######??? | | ??????????????## #### ## ##??# ## ##?? | | ????????????????????#??# #???# #?? | | ???????????????????????# #???# ##? | | ???????????????????????## #???# ### #? | | ????????????????????????# ##### #?## #? | | ????????????????????????#r""" #??## ##? | | ????????????????????????# """ #???## #?? | | ????????????????????????# """ ###### ##????# #?? | | ????????????????????????# """ #????# #????## #?? | | ???????????????????????? #????# #???## #?? | | ???????????????????????? #????# #??## #?? | | ???????????????????????# #?????# #??# ##?? | | ???????????????????????## #?????# #??# #??? | | ????????????????????????### #?????# #??# ##??? | | ??????????????????????????# #?????# ##?# ###???? | | ??????????????????????????# #?##### ### #?????? | | ????????????????????????### #?# # #?????? | | ????????????????????????# #?# ## ##????? | +----------------------------------------------------+ Best States ------------- Heat Dissipation 42 Energy Generation 14 Energy Capacity 275 Matter Stores 300 Matter Capacity 300 Sight Range 16 Terrain Scan Density 10 Armor Coverage 375 Evasion (%) 50 Recoil Reduction 2 Item Schematics ----------------- VTOL Module | -9/Materials | Scanalyzed Med. Laser | -9/Materials | Scanalyzed Visual Processing Unit | -9/Materials | Scanalyzed Weight Redist. System | -9/Materials | Scanalyzed Hrd. Light Armor Plating | -9/Materials | Scanalyzed Robot Schematics ------------------ None Fabricated ------------ Nothing Repaired ---------- Nothing Alien Tech Used ----------------- None Achievements -------------- None Challenges ------------ None Game ------ Seed PointHugeAutopenetrator Manual? 0 Play Time 00:20:10 Cumulative 360.2 hours Start 2025.10.06 @ 11:54:59 End 2025.10.07 @ 05:03:25 Sessions 6 Manual Loads 0 Difficulty Rogue Special Mode None Game No. 475 Rogue 475 Adventurer 0 Explorer 0 Win Type - Total 11 Types 6/0/1/2/1/0/1/0/0/0 Lore% 87 Gallery% 83 Achievement% 70 Wizard Run 0 Options --------- Layout 0 ASCII 0 Keyboard 0 Movement Mouse Keybinds 0 Fullscreen 1 Font 24/Tamsyn Map View 76x50 Zoom Use 0% Tactical HUD 1 Map Filters NONE Filters NONE Steam 1 RUN: 2aba31ac-0200-4150-851e-08ec6cb101bc